Workbook

Sheet About
D1: Line Sizing BY EIEPD

Sheet fitting
B3: 0
B5: PIPE CHARACHTERISTICS (STANDARD PIPE)
B6: Internal Area | C6: mm2 | D6: =3.14159*D7^2/4 -> 196.0368508 | E6: =3.14159*E7^2/4 -> 344.0419267 | F6: =3.14159*F7^2/4 -> 557.5809457 | G6: 1313.435347 | H6: 2164.900302 | I6: 2164.900302 | J6: 4769.44295 | K6: 8213.050418 | L6: 12906.94791 | M6: 18638.82618 | N6: 32275.39525 | O6: 50873.59061 | P6: 72965.81536 | Q6: 88958.75666 | R6: 117841.0586 | S6: 150777.0169 | T6: 187766.6316 | U6: 228809.9028 | V6: 273906.8303 | W6: 323057.4143 | X6: 376261.6546 | Y6: 433519.5514 | Z6: 494831.1046 | AA6: 560196.3142 | AB6: 629615.1802 | AC6: 703087.7026 | AD6: 780613.8814 | AE6: 862193.7166 | AF6: 947827.2083 | AG6: 1037514.356 | AH6: 1131255.161
B7: Internal Diameter | C7: mm | D7: =D8*25.4 -> 15.7988 | E7: =E8*25.4 -> 20.9296 | F7: =F8*25.4 -> 26.6446 | G7: 40.894 | H7: 52.5018 | I7: 52.5018 | J7: 77.9272 | K7: 102.2604 | L7: 128.1938 | M7: 154.051 | N7: 202.7174 | O7: 254.508 | P7: 304.8 | Q7: 336.55 | R7: 387.35 | S7: 438.15 | T7: 488.95 | U7: 539.75 | V7: 590.55 | W7: 641.35 | X7: 692.15 | Y7: 742.95 | Z7: 793.75 | AA7: 844.55 | AB7: 895.35 | AC7: 946.15 | AD7: 996.95 | AE7: 1047.75 | AF7: 1098.55 | AG7: =AG8*25.4 -> 1149.35 | AH7: =AH8*25.4 -> 1200.15
B8: Internal Diameter | C8: in | D8: 0.622 | E8: 0.824 | F8: 1.049 | G8: 1.61 | H8: 2.067 | I8: 2.067 | J8: 3.068 | K8: 4.026 | L8: 5.047 | M8: 6.065 | N8: 7.981 | O8: 10.02 | P8: 12 | Q8: 13.25 | R8: 15.25 | S8: 17.25 | T8: 19.25 | U8: 21.25 | V8: 23.25 | W8: 25.25 | X8: 27.25 | Y8: 29.25 | Z8: 31.25 | AA8: 33.25 | AB8: 35.25 | AC8: 37.25 | AD8: 39.25 | AE8: 41.25 | AF8: 43.25 | AG8: 45.25 | AH8: 47.25
B9: Friction factor (FT) | D9: 0.027 | E9: 0.025 | F9: 0.023 | G9: 0.021 | H9: 0.019 | I9: 0.018 | J9: 0.018 | K9: 0.017 | L9: 0.016 | M9: 0.015 | N9: 0.014 | O9: 0.014 | P9: 0.013 | Q9: 0.013 | R9: 0.013 | S9: 0.012 | T9: 0.012 | U9: 0.012 | V9: 0.012 | W9: 0.011 | X9: 0.011 | Y9: 0.011 | Z9: 0.011 | AA9: 0.011 | AB9: 0.01 | AC9: 0.01 | AD9: 0.01 | AE9: 0.01 | AF9: 0.01 | AG9: 0.01 | AH9: 0.01
B10: Nominal Pipe Size | C10: in | D10: 0.5 | E10: 0.75 | F10: 1 | G10: 1.5 | H10: 2 | I10: 2.5 | J10: 3 | K10: 4 | L10: 5 | M10: 6 | N10: 8 | O10: 10 | P10: 12 | Q10: 14 | R10: 16 | S10: 18 | T10: 20 | U10: 22 | V10: 24 | W10: 26 | X10: 28 | Y10: 30 | Z10: 32 | AA10: 34 | AB10: 36 | AC10: 38 | AD10: 40 | AE10: 42 | AF10: 44 | AG10: 46 | AH10: 48
B11: fittings K value extracted from Crane
B12: * tee flow thru | C12: 20*ft | D12: =20*D9 -> 0.54 | E12: =20*E9 -> 0.5 | F12: 0.46 | G12: 0.42 | H12: 0.38 | I12: 0.36 | J12: 0.36 | K12: 0.34 | L12: 0.32 | M12: 0.3 | N12: 0.28 | O12: 0.28 | P12: 0.26 | Q12: 0.26 | R12: 0.26 | S12: 0.24 | T12: 0.24 | U12: 0.24 | V12: 0.24 | W12: 0.22 | X12: 0.22 | Y12: 0.22 | Z12: 0.22 | AA12: 0.22 | AB12: 0.2 | AC12: 0.2 | AD12: 0.2 | AE12: 0.2 | AF12: 0.2 | AG12: 0.2 | AH12: 0.2
B13: * tee branch | C13: 60*ft | D13: =60*D9 -> 1.62 | E13: =60*E9 -> 1.5 | F13: 1.38 | G13: 1.26 | H13: 1.14 | I13: 1.08 | J13: 1.08 | K13: 1.02 | L13: 0.96 | M13: 0.9 | N13: 0.84 | O13: 0.84 | P13: 0.78 | Q13: 0.78 | R13: 0.78 | S13: 0.72 | T13: 0.72 | U13: 0.72 | V13: 0.72 | W13: 0.66 | X13: 0.66 | Y13: 0.66 | Z13: 0.66 | AA13: 0.66 | AB13: 0.6 | AC13: 0.6 | AD13: 0.6 | AE13: 0.6 | AF13: 0.6 | AG13: 0.6 | AH13: 0.6
B14: * elbow 90 deg LR | C14: 14*ft | D14: =14*D9 -> 0.378 | E14: =14*E9 -> 0.35 | F14: 0.322 | G14: 0.294 | H14: 0.266 | I14: 0.252 | J14: 0.252 | K14: 0.238 | L14: 0.224 | M14: 0.21 | N14: 0.196 | O14: 0.196 | P14: 0.182 | Q14: 0.182 | R14: 0.182 | S14: 0.168 | T14: 0.168 | U14: 0.168 | V14: 0.168 | W14: 0.154 | X14: 0.154 | Y14: 0.154 | Z14: 0.154 | AA14: 0.154 | AB14: 0.14 | AC14: 0.14 | AD14: 0.14 | AE14: 0.14 | AF14: 0.14 | AG14: 0.14 | AH14: 0.14
B15: * elbow 90 deg screwed | C15: 30*ft | D15: =30*D9 -> 0.81 | E15: =30*E9 -> 0.75 | F15: 0.69 | G15: 0.63 | H15: 0.57 | I15: 0.54 | J15: 0.54 | K15: 0.51 | L15: 0.48 | M15: 0.45 | N15: 0.42 | O15: 0.42 | P15: 0.39 | Q15: 0.39 | R15: 0.39 | S15: 0.36 | T15: 0.36 | U15: 0.36 | V15: 0.36 | W15: 0.33 | X15: 0.33 | Y15: 0.33 | Z15: 0.33 | AA15: 0.33 | AB15: 0.3 | AC15: 0.3 | AD15: 0.3 | AE15: 0.3 | AF15: 0.3 | AG15: 0.3 | AH15: 0.3
B16: * elbow 45 deg | C16: 16*ft | D16: =16*D9 -> 0.432 | E16: =16*E9 -> 0.4 | F16: 0.368 | G16: 0.336 | H16: 0.304 | I16: 0.288 | J16: 0.288 | K16: 0.272 | L16: 0.256 | M16: 0.24 | N16: 0.224 | O16: 0.224 | P16: 0.208 | Q16: 0.208 | R16: 0.208 | S16: 0.192 | T16: 0.192 | U16: 0.192 | V16: 0.192 | W16: 0.176 | X16: 0.176 | Y16: 0.176 | Z16: 0.176 | AA16: 0.176 | AB16: 0.16 | AC16: 0.16 | AD16: 0.16 | AE16: 0.16 | AF16: 0.16 | AG16: 0.16 | AH16: 0.16
B17: * elbow 45 deg screwed | C17: 16*ft | D17: =16*D9 -> 0.432 | E17: =16*E9 -> 0.4 | F17: 0.368 | G17: 0.336 | H17: 0.304 | I17: 0.288 | J17: 0.288 | K17: 0.272 | L17: 0.256 | M17: 0.24 | N17: 0.224 | O17: 0.224 | P17: 0.208 | Q17: 0.208 | R17: 0.208 | S17: 0.192 | T17: 0.192 | U17: 0.192 | V17: 0.192 | W17: 0.176 | X17: 0.176 | Y17: 0.176 | Z17: 0.176 | AA17: 0.176 | AB17: 0.16 | AC17: 0.16 | AD17: 0.16 | AE17: 0.16 | AF17: 0.16 | AG17: 0.16 | AH17: 0.16
B18: * gate valve | C18: 8*ft | D18: =8*D9 -> 0.216 | E18: =8*E9 -> 0.2 | F18: 0.184 | G18: 0.168 | H18: 0.152 | I18: 0.144 | J18: 0.144 | K18: 0.136 | L18: 0.128 | M18: 0.12 | N18: 0.112 | O18: 0.112 | P18: 0.104 | Q18: 0.104 | R18: 0.104 | S18: 0.096 | T18: 0.096 | U18: 0.096 | V18: 0.096 | W18: 0.088 | X18: 0.088 | Y18: 0.088 | Z18: 0.088 | AA18: 0.088 | AB18: 0.08 | AC18: 0.08 | AD18: 0.08 | AE18: 0.08 | AF18: 0.08 | AG18: 0.08 | AH18: 0.08
B19: * ball valve | C19: 3*ft | D19: =3*D9 -> 0.081 | E19: =3*E9 -> 0.075 | F19: 0.069 | G19: 0.063 | H19: 0.057 | I19: 0.054 | J19: 0.054 | K19: 0.051 | L19: 0.048 | M19: 0.045 | N19: 0.042 | O19: 0.042 | P19: 0.039 | Q19: 0.039 | R19: 0.039 | S19: 0.036 | T19: 0.036 | U19: 0.036 | V19: 0.036 | W19: 0.033 | X19: 0.033 | Y19: 0.033 | Z19: 0.033 | AA19: 0.033 | AB19: 0.03 | AC19: 0.03 | AD19: 0.03 | AE19: 0.03 | AF19: 0.03 | AG19: 0.03 | AH19: 0.03
B20: * globe valve | C20: 340*ft | D20: =340*D9 -> 9.18 | E20: =340*E9 -> 8.5 | F20: 7.82 | G20: 7.14 | H20: 6.46 | I20: 6.12 | J20: 6.12 | K20: 5.78 | L20: 5.44 | M20: 5.1 | N20: 4.76 | O20: 4.76 | P20: 4.42 | Q20: 4.42 | R20: 4.42 | S20: 4.08 | T20: 4.08 | U20: 4.08 | V20: 4.08 | W20: 3.74 | X20: 3.74 | Y20: 3.74 | Z20: 3.74 | AA20: 3.74 | AB20: 3.4 | AC20: 3.4 | AD20: 3.4 | AE20: 3.4 | AF20: 3.4 | AG20: 3.4 | AH20: 3.4
B21: * butterfly valve | C21: 45*ft /35/25 *** | D21: =45*D9 -> 1.215 | E21: =45*E9 -> 1.125 | F21: 1.035 | G21: 0.945 | H21: 0.855 | I21: 0.81 | J21: 0.81 | K21: 0.765 | L21: 0.72 | M21: 0.675 | N21: 0.63 | O21: 0.63 | P21: 0.585 | Q21: 0.585 | R21: 0.585 | S21: 0.54 | T21: 0.54 | U21: 0.54 | V21: 0.54 | W21: 0.495 | X21: 0.495 | Y21: 0.495 | Z21: 0.495 | AA21: 0.495 | AB21: 0.45 | AC21: 0.45 | AD21: 0.45 | AE21: 0.45 | AF21: 0.45 | AG21: 0.45 | AH21: 0.45
B22: * check valve swing | C22: 50*ft | D22: =50*D9 -> 1.35 | E22: =50*E9 -> 1.25 | F22: 1.15 | G22: 1.05 | H22: 0.95 | I22: 0.9 | J22: 0.9 | K22: 0.85 | L22: 0.8 | M22: 0.75 | N22: 0.7 | O22: 0.7 | P22: 0.65 | Q22: 0.65 | R22: 0.65 | S22: 0.6 | T22: 0.6 | U22: 0.6 | V22: 0.6 | W22: 0.55 | X22: 0.55 | Y22: 0.55 | Z22: 0.55 | AA22: 0.55 | AB22: 0.5 | AC22: 0.5 | AD22: 0.5 | AE22: 0.5 | AF22: 0.5 | AG22: 0.5 | AH22: 0.5
B23: * check valve lift | C23: 600*ft | D23: =600*D9 -> 16.2 | E23: =600*E9 -> 15 | F23: 13.8 | G23: 12.6 | H23: 11.4 | I23: 10.8 | J23: 10.8 | K23: 10.2 | L23: 9.6 | M23: 9 | N23: 8.4 | O23: 8.4 | P23: 7.8 | Q23: 7.8 | R23: 7.8 | S23: 7.2 | T23: 7.2 | U23: 7.2 | V23: 7.2 | W23: 6.6 | X23: 6.6 | Y23: 6.6 | Z23: 6.6 | AA23: 6.6 | AB23: 6 | AC23: 6 | AD23: 6 | AE23: 6 | AF23: 6 | AG23: 6 | AH23: 6
B24: * check valvestop lift | C24: 400*ft | D24: =400*D9 -> 10.8 | E24: =400*E9 -> 10 | F24: 9.2 | G24: 8.4 | H24: 7.6 | I24: 7.2 | J24: 7.2 | K24: 6.8 | L24: 6.4 | M24: 6 | N24: 5.6 | O24: 5.6 | P24: 5.2 | Q24: 5.2 | R24: 5.2 | S24: 4.8 | T24: 4.8 | U24: 4.8 | V24: 4.8 | W24: 4.4 | X24: 4.4 | Y24: 4.4 | Z24: 4.4 | AA24: 4.4 | AB24: 4 | AC24: 4 | AD24: 4 | AE24: 4 | AF24: 4 | AG24: 4 | AH24: 4
B25: * check valve tilting disk | C25: 40*ft****** | D25: =40*D9 -> 1.08 | E25: =40*E9 -> 1 | F25: 0.92 | G25: 0.84 | H25: 0.76 | I25: 0.72 | J25: 0.72 | K25: 0.68 | L25: 0.64 | M25: 0.6 | N25: 0.56 | O25: 0.56 | P25: 0.52 | Q25: 0.52 | R25: 0.52 | S25: 0.48 | T25: 0.48 | U25: 0.48 | V25: 0.48 | W25: 0.44 | X25: 0.44 | Y25: 0.44 | Z25: 0.44 | AA25: 0.44 | AB25: 0.4 | AC25: 0.4 | AD25: 0.4 | AE25: 0.4 | AF25: 0.4 | AG25: 0.4 | AH25: 0.4
B26: * foot valve hinged disc | C26: 75*ft | D26: =75*D9 -> 2.025 | E26: =75*E9 -> 1.875 | F26: 1.725 | G26: 1.575 | H26: 1.425 | I26: 1.35 | J26: 1.35 | K26: 1.275 | L26: 1.2 | M26: 1.125 | N26: 1.05 | O26: 1.05 | P26: 0.975 | Q26: 0.975 | R26: 0.975 | S26: 0.9 | T26: 0.9 | U26: 0.9 | V26: 0.9 | W26: 0.825 | X26: 0.825 | Y26: 0.825 | Z26: 0.825 | AA26: 0.825 | AB26: 0.75 | AC26: 0.75 | AD26: 0.75 | AE26: 0.75 | AF26: 0.75 | AG26: 0.75 | AH26: 0.75
B27: * foot valve poppet disc | C27: 420*ft | D27: =420*D9 -> 11.34 | E27: =420*E9 -> 10.5 | F27: 9.66 | G27: 8.82 | H27: 7.98 | I27: 7.56 | J27: 7.56 | K27: 7.14 | L27: 6.72 | M27: 6.3 | N27: 5.88 | O27: 5.88 | P27: 5.46 | Q27: 5.46 | R27: 5.46 | S27: 5.04 | T27: 5.04 | U27: 5.04 | V27: 5.04 | W27: 4.62 | X27: 4.62 | Y27: 4.62 | Z27: 4.62 | AA27: 4.62 | AB27: 4.2 | AC27: 4.2 | AD27: 4.2 | AE27: 4.2 | AF27: 4.2 | AG27: 4.2 | AH27: 4.2
B28: * reducer N*K | D28: 1 | E28: 1 | F28: 1 | G28: 1 | H28: 1 | I28: 1 | J28: 1 | K28: 1 | L28: 1 | M28: 1 | N28: 1 | O28: 1 | P28: 1 | Q28: 1 | R28: 1 | S28: 1 | T28: 1 | U28: 1 | V28: 1 | W28: 1 | X28: 1 | Y28: 1 | Z28: 1 | AA28: 1 | AB28: 1 | AC28: 1 | AD28: 1 | AE28: 1 | AF28: 1 | AG28: 1 | AH28: 1
B29: * entrance | D29: 0.78 | E29: 0.78 | F29: 0.78 | G29: 0.78 | H29: 0.78 | I29: 0.78 | J29: 0.78 | K29: 0.78 | L29: 0.78 | M29: 0.78 | N29: 0.78 | O29: 0.78 | P29: 0.78 | Q29: 0.78 | R29: 0.78 | S29: 0.78 | T29: 0.78 | U29: 0.78 | V29: 0.78 | W29: 0.78 | X29: 0.78 | Y29: 0.78 | Z29: 0.78 | AA29: 0.78 | AB29: 0.78 | AC29: 0.78 | AD29: 0.78 | AE29: 0.78 | AF29: 0.78 | AG29: 0.78 | AH29: 0.78
B30: * exit | D30: 1 | E30: 1 | F30: 1 | G30: 1 | H30: 1 | I30: 1 | J30: 1 | K30: 1 | L30: 1 | M30: 1 | N30: 1 | O30: 1 | P30: 1 | Q30: 1 | R30: 1 | S30: 1 | T30: 1 | U30: 1 | V30: 1 | W30: 1 | X30: 1 | Y30: 1 | Z30: 1 | AA30: 1 | AB30: 1 | AC30: 1 | AD30: 1 | AE30: 1 | AF30: 1 | AG30: 1 | AH30: 1
B34: =CELL("FILENAME") -> C:\Users\Behrouzi\Downloads\[EIEPD Line Sizing (1).xlsm]Line Sizing (Single Phase)
B39: SCHEDULE 40
B40: Nominal Pipe Size | C40: in | D40: 0.5 | E40: 0.75 | F40: 1 | G40: 1.5 | H40: 2 | I40: 2.5 | J40: 3 | K40: 4 | L40: 5 | M40: 6 | N40: 8 | O40: 10 | P40: 12 | Q40: 14 | R40: 16 | S40: 18 | T40: 20 | U40: 22 | V40: 24 | W40: 26 | X40: 28 | Y40: 30 | Z40: 32 | AA40: 34 | AB40: 36
B41: INTERNAL DIAMETER | C41: in | D41: 0.622 | E41: 0.824 | F41: 1.049 | G41: 1.61 | H41: 2.067 | I41: 2.067 | J41: 3.068 | K41: 4.026 | L41: 5.047 | M41: 6.065 | N41: 7.981 | O41: 10.02 | P41: 11.938 | Q41: 13.124 | R41: 15 | S41: 16.876 | T41: 18.812 | V41: 22.624 | Z41: 30.624 | AA41: 32.624 | AB41: 34.5
B42: INTERNAL DIAMETER | C42: mm | D42: =D41*25.4 -> 15.7988 | E42: 20.9296 | F42: 26.6446 | G42: 40.894 | H42: 52.5018 | I42: 52.5018 | J42: 77.9272 | K42: 102.2604 | L42: 128.1938 | M42: 154.051 | N42: 202.7174 | O42: 254.508 | P42: =P41*25.4 -> 303.2252 | Q42: 333.3496 | R42: 381 | S42: 428.6504 | T42: 477.8248 | V42: 574.6496 | Z42: 777.8496 | AA42: 828.6496 | AB42: 876.3
B43: INTERNAL AREA | C43: mm2 | D43: =3.14159*D42^2/4 -> 196.0368508 | E43: 344.0419267 | F43: 557.5809457 | G43: 1313.435347 | H43: 2164.900302 | I43: 2164.900302 | J43: 4769.44295 | K43: 8213.050418 | L43: 12906.94791 | M43: 18638.82618 | N43: 32275.39525 | O43: 50873.59061 | P43: =3.14159*P42^2/4 -> 72213.78305 | Q43: 87274.9063 | R43: 114009.0865 | S43: 144309.852 | T43: 179319.2393 | V43: 259355.6611 | Z43: 475204.7575 | AA43: 539301.1727 | AB43: 603108.0676
B46: SCHEDULE 80
B47: Nominal Pipe Size | C47: in | D47: 0.5 | E47: 0.75 | F47: 1 | G47: 1.5 | H47: 2 | I47: 2.5 | J47: 3 | K47: 4 | L47: 5 | M47: 6 | N47: 8 | O47: 10 | P47: 12 | Q47: 14 | R47: 16 | S47: 18 | T47: 20 | U47: 22 | V47: 24
B48: INTERNAL DIAMETER | C48: in | D48: 0.546 | E48: 0.742 | F48: 0.957 | G48: 1.278 | H48: 1.939 | I48: 2.323 | J48: 2.9 | K48: 3.826 | L48: 4.813 | M48: 5.761 | N48: 7.625 | O48: 9.562 | P48: 11.374 | Q48: 12.5 | R48: 14.312 | S48: 16.124 | T48: 17.938 | U48: 19.75 | V48: 21.562
B49: INTERNAL DIAMETER | C49: mm | D49: =D48*25.4 -> 13.8684 | E49: =E48*25.4 -> 18.8468 | F49: 24.3078 | G49: 32.4612 | H49: 49.2506 | I49: 59.0042 | J49: 73.66 | K49: 97.1804 | L49: 122.2502 | M49: 146.3294 | N49: 193.675 | O49: 242.8748 | P49: 288.8996 | Q49: 317.5 | R49: 363.5248 | S49: 409.5496 | T49: 455.6252 | U49: 501.65 | V49: 547.6748
B50: INTERNAL AREA | C50: mm2 | D50: =3.14159*D49^2/4 -> 151.0574792 | E50: =3.14159*E49^2/4 -> 278.9746609 | F50: 464.067146 | G50: 827.5965192 | H50: 1905.077141 | I50: 2734.357954 | J50: 4261.4063 | K50: 7417.317665 | L50: 11737.85313 | M50: 16817.16163 | N50: 29460.26464 | O50: 46329.16005 | P50: 65551.61496 | Q50: 79172.97673 | R50: 103790.4997 | S50: 131735.4098 | T50: 163044.0622 | U50: 197647.4191 | V50: 235578.1632

Sheet Line Sizing (Single Phase)
AU1: CS | AV1: 0.0018 | AX1: STD | AZ1: Vapor | BB1: =IF(E13=AZ1,"ρV²","Velocity") -> ρV²
B2: PROJECT : | C2: Methanol Plant | G2: DATE : | H2: 2023.02.01 | L2: 1 | AU2: CCS | AV2: 0.018 | AX2: 40 | AZ2: Liquid
B3: SUBJECT : | C3: EIEPD | G3: BY : | H3: EIEPD | AU3: SS / SL | AV3: 0.0012 | AX3: 80
B4: REF FILE : | C4: Line Sizing Calculation,sheet2 | G4: REV : | H4: 3 | AU4: SS / WLD | AV4: 0.0029
B5: UNIT : | G5: DOC NO.: | AU5: Titanium / SL | AV5: 0.0012
AU6: Titanium / WLD | AV6: 0.0029
B7: Line Sizing Calculation Form (Single Phase) | AU7: Galvanid CS | AV7: 0.0059
AU8: GRP | AV8: 0.0008
AU9: ELP | AV9: 0.0059
B11: Line No. : | D11: 3315 | G11: Service (From/To)
B12: Total Flow Rate | D12: kg/hr | E12: 1578 | G12: Recycle H2
B13: Fluid phase (Liquid/Vapor) | E13: Vapor
B14: Temperature | D14: C | E14: 48
B15: Density | D15: kg/m3 | E15: 25 | G15: Material
B16: Viscosity | D16: Cp | E16: 0.015 | G16: CS
B19: Calculation Results | E19: Trial 1 | G19: Trial 2 | H19: Trial 3
B20: Pipe Length (DEF.) | D20: m | E20: 1000 | G20: 1000 | H20: 1000
B21: Nominal Pipe Size | D21: inch | E21: 3 | G21: 4 | H21: 6
B22: Schedule No. | E22: 80 | G22: 80 | H22: 40
B23: Line Roughness (DEF.) | D23: inch | E23: =VLOOKUP($G$16,$AU$1:$AV$9,2,0) -> 0.0018 | G23: =VLOOKUP($G$16,$AU$1:$AV$9,2,0) -> 0.0018 | H23: =VLOOKUP($G$16,$AU$1:$AV$9,2,0) -> 0.0018
B24: Pipe Internal Diameter | D24: mm | E24: =IF(E22="STD",OFFSET(fitting!$B$7,0,find_col(E21)-2,1,1),IF(E22="40",OFFSET(fitting!B42,0,find_col(E21)-2,1,1),IF(E22="80",OFFSET(fitting!B49,0,find_col(E21)-2,1,1),"Range Out"))) -> 73.66 | G24: =IF(G22="STD",OFFSET(fitting!$B$7,0,find_col(G21)-2,1,1),IF(G22="40",OFFSET(fitting!B42,0,find_col(G21)-2,1,1),IF(G22="80",OFFSET(fitting!B49,0,find_col(G21)-2,1,1),"Range Out"))) -> 97.1804 | H24: =IF(H22="STD",OFFSET(fitting!$B$7,0,find_col(H21)-2,1,1),IF(H22="40",OFFSET(fitting!B42,0,find_col(H21)-2,1,1),IF(H22="80",OFFSET(fitting!B49,0,find_col(H21)-2,1,1),"Range Out"))) -> 154.051
B25: Pipe Internal Area | D25: mm2 | E25: =3.14159*E24^2/4 -> 4261.4063 | G25: =3.14159*G24^2/4 -> 7417.317665 | H25: =3.14159*H24^2/4 -> 18638.82618
B26: Reynold 's No. | E26: =IF(L2=1,353.658*E12/E16/E24,353.658*E12/2.2046/E16/E24) -> 505088.5365 | G26: =IF(L2=1,353.658*E12/E16/G24,353.658*E12/2.2046/E16/G24) -> 382842.8531 | H26: =IF(L2=1,353.658*E12/$E$16/H24,353.658*E12/2.2046/$E$16/H24) -> 241509.7701
B27: Y | E27: =(-2.457 *0.3678*LOG((7 / E26) ^ 0.9 + 0.27 * E23 *25.4/ E24,2.71828)) ^ 16 -> 1.383820809e+14 | G27: =(-2.457 *0.3678 *LOG((7 / G26) ^ 0.9 + 0.27 * G23 *25.4/G24,2.71828)) ^ 16 -> 1.819441365e+14 | H27: =(-2.457 *0.3678* LOG((7 / H26) ^ 0.9 + 0.27 * H23 *25.4/ H24,2.71828)) ^ 16 -> 2.229531627e+14
B28: Z | E28: =(37530 /E26) ^ 16 -> 8.633300157e-19 | G28: =(37530 /G26) ^ 16 -> 7.27324681e-17 | H28: =(37530 /H26) ^ 16 -> 1.156383157e-13
B29: Friction Factor | E29: =((8 / E26) ^ 12 + 1 / (E27 + E28) ^ 1.48) ^ (1/12) -> 0.01802741615 | G29: =((8 / G26) ^ 12 + 1 / (G27 + G28) ^ 1.48) ^ (1 / 12) -> 0.01742907366 | H29: =((8 / H26) ^ 12 + 1 / (H27 + H28) ^ 1.48) ^ (1 / 12) -> 0.01699757573
B30: Head Loss (Dh/L) | D30: bar | E30: =51.02*E29*E31^2/E24 -> 0.2113806922 | G30: =51.02*G29*G31*G31/G24 -> 0.05112947083 | H30: =51.02*H29*H31*H31/H24 -> 0.004981438577
B31: Velocity | D31: m/s | E31: =IF(L2=1,E12*1000000/3600/E25/E15,E12*1000000/2.2/3600/E25/(E15*1000/62.4)/0.3048) -> 4.114447696 | G31: =IF(L2=1,E12*1000000/3600/G25/E15,E12*1000000/3600/2.2/G25/(E15*1000/62.4)/0.3048) -> 2.363837458 | H31: =IF(L2=1,E12*1000000/3600/H25/E15,E12*1000000/3600/2.2/H25/(E15*1000/62.4)/0.3048) -> 0.940688709
B32: Pressure Drop (DP) | D32: bar | E32: =IF(L2=1,500*E31^2*E15*E29*E20/E24/101300,500*(E31*0.3048)^2*(E15*1000/62.4)*E29*(E20/0.3048)/E24/101300) -> 0.5112407098 | G32: =IF(L2=1,500*G31^2*E15*G29*G20/G24/101300,500*(G31*0.3048)^2*(E15*1000/62.4)*G29*(G20/0.3048)/G24/101300) -> 0.1236606176 | H32: =IF(L2=1,500*H29*H20*H31^2*E15/H24/101300,500*(H31*0.3048)^2*(H20/0.3048)*H29*(E15*1000/62.4)/H24/101300) -> 0.01204799817
B33: ρV² | D33: kg/m.s2 | E33: =$E$15*E31*E31 -> 423.2169962 | G33: =$E$15*G31*G31 -> 139.6931882 | H33: =$E$15*H31*H31 -> 22.12238118
B35: ="Allowable "&BB1 -> Allowable ρV² | D35: =IF(E13=AZ1,IF(D15="kg/m3","kg/m.s2","Ib/ft.s2"),IF(D15="kg/m3","m/s","ft/s")) -> kg/m.s2 | E35: 7500
B36: Allowable Pressure Drop | D36: bar/1000m | E36: ****
B37: NOTES:
